[Event "*** SCC Grand Prix: Titled Tuesday Blitz"]
[Site "Chess.com"]
[Date "2020.07.14"]
[Round "4"]
[White "GuuBol"]
[Black "whodee11"]
[Result "1-0"]
[WhiteElo "2242"]
[BlackElo "2396"]
[TimeControl "180+1"]
[EndTime "10:40:04 PDT"]
[Termination "GuuBol won on time"]

1. e4 {[%clk 0:03:00.9]} 1... c5 {[%clk 0:02:59.7]} 2. d4 {[%clk 0:03:00.6]}
2... cxd4 {[%clk 0:02:59.6]} 3. c3 {[%clk 0:03:00.4]} 3... d3 {[%clk 0:02:59.8]}
4. c4 {[%clk 0:03:00.1]} 4... g6 {[%clk 0:03:00.7]} 5. Bxd3 {[%clk 0:03:00]}
5... Bg7 {[%clk 0:03:01.6]} 6. Nf3 {[%clk 0:03:00.1]} 6... Nh6 {[%clk
0:03:02.1]} 7. Nc3 {[%clk 0:02:58.2]} 7... O-O {[%clk 0:03:02.5]} 8. Be3 {[%clk
0:02:57.1]} 8... f6 {[%clk 0:03:02.4]} 9. Qd2 {[%clk 0:02:52]} 9... Nf7 {[%clk
0:03:02.1]} 10. O-O {[%clk 0:02:43]} 10... Nc6 {[%clk 0:03:02.1]} 11. Rac1
{[%clk 0:02:39.8]} 11... b6 {[%clk 0:03:01.9]} 12. Rfd1 {[%clk 0:02:39.5]} 12...
d6 {[%clk 0:03:01.8]} 13. Nd5 {[%clk 0:02:33.9]} 13... e5 {[%clk 0:03:01.8]} 14.
a3 {[%clk 0:02:29.3]} 14... f5 {[%clk 0:03:00.1]} 15. Qe2 {[%clk 0:02:21.9]}
15... f4 {[%clk 0:02:59.6]} 16. Bd2 {[%clk 0:02:22]} 16... Bg4 {[%clk
0:02:56.3]} 17. b4 {[%clk 0:02:19.5]} 17... Nd4 {[%clk 0:02:54.9]} 18. Nxd4
{[%clk 0:01:55.9]} 18... Bxe2 {[%clk 0:02:54.1]} 19. Ne6 {[%clk 0:01:53.2]}
19... Qd7 {[%clk 0:02:33.9]} 20. Nxf8 {[%clk 0:01:52.7]} 20... Rxf8 {[%clk
0:02:34.5]} 21. Bxe2 {[%clk 0:01:52]} 21... Ng5 {[%clk 0:02:27]} 22. c5 {[%clk
0:01:29.4]} 22... bxc5 {[%clk 0:02:26.3]} 23. bxc5 {[%clk 0:01:29]} 23... Nxe4
{[%clk 0:01:59.5]} 24. c6 {[%clk 0:01:21.2]} 24... Qe6 {[%clk 0:01:55.8]} 25. c7
{[%clk 0:01:10.3]} 25... Kh8 {[%clk 0:01:37]} 26. Bb4 {[%clk 0:00:40.2]} 26...
Bh6 {[%clk 0:01:15.2]} 27. f3 {[%clk 0:00:38.6]} 27... g5 {[%clk 0:00:59.3]} 28.
Ba6 {[%clk 0:00:35.2]} 28... Nc5 {[%clk 0:00:39.3]} 29. Bxc5 {[%clk 0:00:30]}
29... dxc5 {[%clk 0:00:40.2]} 30. Bb7 {[%clk 0:00:23.1]} 30... e4 {[%clk
0:00:29.3]} 31. Rxc5 {[%clk 0:00:20.8]} 31... g4 {[%clk 0:00:26.3]} 32. c8=Q
{[%clk 0:00:20.4]} 32... Rxc8 {[%clk 0:00:25.9]} 33. Rxc8+ {[%clk 0:00:20.6]}
33... Kg7 {[%clk 0:00:24.5]} 34. Rc7+ {[%clk 0:00:21]} 34... Kg8 {[%clk
0:00:22]} 35. Rc6 {[%clk 0:00:17.9]} 35... Qe5 {[%clk 0:00:20.1]} 36. Rxh6
{[%clk 0:00:16.6]} 36... exf3 {[%clk 0:00:19.3]} 37. Nf6+ {[%clk 0:00:16.7]}
37... Kg7 {[%clk 0:00:19]} 38. Rxh7+ {[%clk 0:00:17.1]} 38... Kxf6 {[%clk
0:00:18.6]} 39. Rh6+ {[%clk 0:00:16.8]} 39... Kg7 {[%clk 0:00:18.8]} 40. Rhd6
{[%clk 0:00:13.7]} 40... Qe3+ {[%clk 0:00:07]} 41. Kh1 {[%clk 0:00:12]} 41...
fxg2+ {[%clk 0:00:07.9]} 42. Bxg2 {[%clk 0:00:11.4]} 42... f3 {[%clk 0:00:08.8]}
43. Bf1 {[%clk 0:00:10.4]} 43... Qe4 {[%clk 0:00:08.1]} 44. R6d4 {[%clk
0:00:09.8]} 44... Qb7 {[%clk 0:00:07.7]} 45. Rxg4+ {[%clk 0:00:09.6]} 45... Kf6
{[%clk 0:00:07.4]} 46. Rg3 {[%clk 0:00:09.7]} 46... Kf5 {[%clk 0:00:05.9]} 47.
Kg1 {[%clk 0:00:07.8]} 47... Kf4 {[%clk 0:00:05.8]} 48. Rd3 {[%clk 0:00:06.6]}
48... Qb6+ {[%clk 0:00:05.6]} 49. Kh1 {[%clk 0:00:06.8]} 1-0

[Event "*** SCC Grand Prix: Titled Tuesday Blitz"]
[Site "Chess.com"]
[Date "2020.07.14"]
[Round "4"]
[White "realmadridtv"]
[Black "Monmoransy"]
[Result "1/2-1/2"]
[WhiteElo "2461"]
[BlackElo "2632"]
[TimeControl "180+1"]
[EndTime "10:40:05 PDT"]
[Termination "Game drawn - insufficient material"]

1. d4 {[%clk 0:03:00.9]} 1... d5 {[%clk 0:02:59.6]} 2. c4 {[%clk 0:02:59.1]}
2... dxc4 {[%clk 0:02:59.6]} 3. e4 {[%clk 0:02:56.7]} 3... b5 {[%clk 0:02:59.1]}
4. a4 {[%clk 0:02:55]} 4... c6 {[%clk 0:02:59]} 5. b3 {[%clk 0:02:49.6]} 5... e5
{[%clk 0:02:57.7]} 6. Nf3 {[%clk 0:02:45.5]} 6... exd4 {[%clk 0:02:43.7]} 7.
Nxd4 {[%clk 0:02:33.5]} 7... Nf6 {[%clk 0:02:14.4]} 8. f3 {[%clk 0:02:30.5]}
8... Bb4+ {[%clk 0:01:56.5]} 9. Kf2 {[%clk 0:02:28.8]} 9... O-O {[%clk
0:01:52.2]} 10. Be2 {[%clk 0:02:23.8]} 10... Bb7 {[%clk 0:01:41.9]} 11. Be3
{[%clk 0:02:19.5]} 11... Nbd7 {[%clk 0:01:37.8]} 12. bxc4 {[%clk 0:02:16.4]}
12... bxc4 {[%clk 0:01:36.3]} 13. Bxc4 {[%clk 0:02:15.5]} 13... a5 {[%clk
0:01:30.7]} 14. Nf5 {[%clk 0:01:42.8]} 14... Ne5 {[%clk 0:01:28.8]} 15. Be2
{[%clk 0:01:37.5]} 15... Qxd1 {[%clk 0:01:23.3]} 16. Rxd1 {[%clk 0:01:36.2]}
16... Rfd8 {[%clk 0:01:19.6]} 17. Nd2 {[%clk 0:01:33.8]} 17... g6 {[%clk
0:01:15.3]} 18. Nd4 {[%clk 0:01:25.6]} 18... Ba6 {[%clk 0:01:03.6]} 19. Bxa6
{[%clk 0:01:20.2]} 19... Rxa6 {[%clk 0:01:02.6]} 20. Ke2 {[%clk 0:01:17.1]}
20... Bc3 {[%clk 0:00:59.9]} 21. N2b3 {[%clk 0:01:07.4]} 21... Bxa1 {[%clk
0:00:57.9]} 22. Rxa1 {[%clk 0:01:08.3]} 22... Raa8 {[%clk 0:00:50.5]} 23. Rc1
{[%clk 0:01:06.5]} 23... Nfd7 {[%clk 0:00:34.3]} 24. f4 {[%clk 0:01:01.6]} 24...
Ng4 {[%clk 0:00:32.1]} 25. Nxc6 {[%clk 0:01:00]} 25... Nxe3 {[%clk 0:00:28]} 26.
Nxd8 {[%clk 0:00:33.3]} 26... Nxg2 {[%clk 0:00:27.7]} 27. Kf3 {[%clk 0:00:30.1]}
27... Nxf4 {[%clk 0:00:26.1]} 28. Kxf4 {[%clk 0:00:31]} 28... Rxd8 {[%clk
0:00:25.9]} 29. Rd1 {[%clk 0:00:29.9]} 29... Kf8 {[%clk 0:00:25.4]} 30. Nxa5
{[%clk 0:00:29.2]} 30... Ke8 {[%clk 0:00:23.9]} 31. Nc4 {[%clk 0:00:18]} 31...
Ra8 {[%clk 0:00:22.6]} 32. a5 {[%clk 0:00:18]} 32... f6 {[%clk 0:00:21.9]} 33.
Rb1 {[%clk 0:00:17.2]} 33... Nc5 {[%clk 0:00:19.8]} 34. Rb5 {[%clk 0:00:15.9]}
34... Ne6+ {[%clk 0:00:18.8]} 35. Ke3 {[%clk 0:00:15.3]} 35... Ra6 {[%clk
0:00:18.2]} 36. e5 {[%clk 0:00:14.1]} 36... fxe5 {[%clk 0:00:17.2]} 37. Ke4
{[%clk 0:00:14.1]} 37... Kd7 {[%clk 0:00:16]} 38. Kxe5 {[%clk 0:00:13.2]} 38...
Nc7 {[%clk 0:00:15.8]} 39. Rb7 {[%clk 0:00:11.1]} 39... Kc6 {[%clk 0:00:12.2]}
40. Rb6+ {[%clk 0:00:10.7]} 40... Rxb6 {[%clk 0:00:11.9]} 41. axb6 {[%clk
0:00:11.3]} 41... Na8 {[%clk 0:00:12.1]} 42. Kf6 {[%clk 0:00:10]} 42... Nxb6
{[%clk 0:00:12.2]} 43. Nxb6 {[%clk 0:00:09.3]} 43... Kxb6 {[%clk 0:00:12.3]} 44.
Kg7 {[%clk 0:00:09.9]} 44... g5 {[%clk 0:00:12.5]} 45. Kxh7 {[%clk 0:00:09.6]}
45... g4 {[%clk 0:00:13]} 46. Kg6 {[%clk 0:00:09.4]} 46... Kc6 {[%clk
0:00:13.4]} 47. Kg5 {[%clk 0:00:09.6]} 47... Kd7 {[%clk 0:00:14]} 48. Kxg4
{[%clk 0:00:10]} 48... Ke7 {[%clk 0:00:14.5]} 49. Kg5 {[%clk 0:00:09.9]} 49...
Kf7 {[%clk 0:00:14.9]} 50. Kh6 {[%clk 0:00:10.2]} 50... Kg8 {[%clk 0:00:15]} 51.
h4 {[%clk 0:00:11.1]} 51... Kh8 {[%clk 0:00:14.9]} 52. Kg6 {[%clk 0:00:11.9]}
52... Kg8 {[%clk 0:00:15.6]} 53. h5 {[%clk 0:00:12.3]} 53... Kh8 {[%clk
0:00:15.9]} 54. h6 {[%clk 0:00:12.8]} 54... Kg8 {[%clk 0:00:16.8]} 55. h7+
{[%clk 0:00:13.3]} 55... Kh8 {[%clk 0:00:17.7]} 56. Kf7 {[%clk 0:00:13.6]} 56...
Kxh7 {[%clk 0:00:17]} 1/2-1/2

[Event "*** SCC Grand Prix: Titled Tuesday Blitz"]
[Site "Chess.com"]
[Date "2020.07.14"]
[Round "4"]
[White "SidArun"]
[Black "pfalcon1949"]
[Result "1-0"]
[WhiteElo "2252"]
[BlackElo "2071"]
[TimeControl "180+1"]
[EndTime "10:40:07 PDT"]
[Termination "SidArun won by resignation"]

1. d4 {[%clk 0:03:00.9]} 1... Nf6 {[%clk 0:02:59.2]} 2. Bg5 {[%clk 0:03:00.5]}
2... Ne4 {[%clk 0:02:57.4]} 3. h4 {[%clk 0:03:00.4]} 3... c5 {[%clk 0:02:56]} 4.
d5 {[%clk 0:03:00.3]} 4... Qb6 {[%clk 0:02:55.9]} 5. Nd2 {[%clk 0:02:59.6]} 5...
Nxd2 {[%clk 0:02:47]} 6. Bxd2 {[%clk 0:02:57.9]} 6... Qxb2 {[%clk 0:02:45.9]} 7.
Nf3 {[%clk 0:02:56]} 7... e6 {[%clk 0:02:43.3]} 8. e4 {[%clk 0:02:50.8]} 8...
exd5 {[%clk 0:02:37.3]} 9. exd5 {[%clk 0:02:50.8]} 9... d6 {[%clk 0:02:35.9]}
10. Bc4 {[%clk 0:02:50.3]} 10... Be7 {[%clk 0:02:32.8]} 11. Rb1 {[%clk
0:02:45.7]} 11... Qf6 {[%clk 0:02:11.3]} 12. Bg5 {[%clk 0:02:43.7]} 12... Qf5
{[%clk 0:02:10.5]} 13. Bd3 {[%clk 0:02:40.3]} 13... Qg4 {[%clk 0:01:54]} 14. Qe2
{[%clk 0:02:34.4]} 14... f6 {[%clk 0:01:51.5]} 15. Bd2 {[%clk 0:02:22.3]} 15...
Kf7 {[%clk 0:01:40.1]} 16. Rxb7 {[%clk 0:01:49.8]} 16... Re8 {[%clk 0:01:19]}
17. Rc7 {[%clk 0:01:39.6]} 17... Kf8 {[%clk 0:00:50]} 18. Bb5 {[%clk 0:01:06]}
18... Bd7 {[%clk 0:00:36]} 19. Bxd7 {[%clk 0:00:53.8]} 19... Nxd7 {[%clk
0:00:35.8]} 20. Be3 {[%clk 0:00:51.9]} 20... Ne5 {[%clk 0:00:33.9]} 21. Nxe5
{[%clk 0:00:50.1]} 21... Qxe2+ {[%clk 0:00:32.9]} 22. Kxe2 {[%clk 0:00:48.6]}
22... fxe5 {[%clk 0:00:33.8]} 23. Rb1 {[%clk 0:00:36.9]} 23... Reb8 {[%clk
0:00:31]} 24. Rxb8+ {[%clk 0:00:35.9]} 24... Rxb8 {[%clk 0:00:31.9]} 25. Rxa7
{[%clk 0:00:36.3]} 25... Rb2 {[%clk 0:00:32.2]} 26. Kd3 {[%clk 0:00:35.9]} 26...
c4+ {[%clk 0:00:29.3]} 27. Kc3 {[%clk 0:00:34.4]} 27... Rb1 {[%clk 0:00:27.7]}
28. Kxc4 {[%clk 0:00:31.9]} 28... Bf6 {[%clk 0:00:28.2]} 29. f3 {[%clk
0:00:26.4]} 29... Rb2 {[%clk 0:00:25]} 30. Kd3 {[%clk 0:00:25.5]} 30... Rb4
{[%clk 0:00:22.1]} 31. g3 {[%clk 0:00:23.4]} 31... h6 {[%clk 0:00:19]} 32. a4
{[%clk 0:00:23.3]} 32... Bd8 {[%clk 0:00:18.4]} 33. a5 {[%clk 0:00:22.4]} 33...
Ra4 {[%clk 0:00:17]} 34. Bb6 {[%clk 0:00:22.4]} 34... Bf6 {[%clk 0:00:13.7]} 35.
Bc7 {[%clk 0:00:19.6]} 35... Kf7 {[%clk 0:00:13.9]} 36. Bxd6+ {[%clk 0:00:19.1]}
36... Kg6 {[%clk 0:00:14.8]} 37. a6 {[%clk 0:00:15.8]} 37... Rd4+ {[%clk
0:00:14.8]} 38. Ke2 {[%clk 0:00:16]} 38... Rxd5 {[%clk 0:00:15.7]} 39. Bb4
{[%clk 0:00:14.1]} 39... Rb5 {[%clk 0:00:15.5]} 40. Bd2 {[%clk 0:00:13.9]} 40...
Rb2 {[%clk 0:00:14.9]} 41. Rb7 {[%clk 0:00:13.9]} 41... Ra2 {[%clk 0:00:14.6]}
42. a7 {[%clk 0:00:14.2]} 42... e4 {[%clk 0:00:15.1]} 43. fxe4 {[%clk
0:00:13.7]} 43... Bd4 {[%clk 0:00:15.3]} 44. Be3 {[%clk 0:00:13.7]} 44... Bc3
{[%clk 0:00:14.4]} 45. Rb3 {[%clk 0:00:12]} 45... Be5 {[%clk 0:00:12.9]} 46.
Rb6+ {[%clk 0:00:11.9]} 46... Kh7 {[%clk 0:00:12.1]} 47. Rb8 {[%clk 0:00:11.4]}
47... Bxg3 {[%clk 0:00:12.5]} 48. a8=Q {[%clk 0:00:10.8]} 48... Bxb8 {[%clk
0:00:12.8]} 49. Qxa2 {[%clk 0:00:10]} 49... Be5 {[%clk 0:00:13.3]} 50. Qe6
{[%clk 0:00:10]} 50... Bf6 {[%clk 0:00:14.2]} 51. Qf5+ {[%clk 0:00:09.4]} 51...
Kg8 {[%clk 0:00:13.7]} 52. e5 {[%clk 0:00:09.9]} 52... Bxh4 {[%clk 0:00:11.9]}
53. e6 {[%clk 0:00:10.3]} 53... Be7 {[%clk 0:00:12.4]} 54. Qf7+ {[%clk
0:00:10.1]} 54... Kh7 {[%clk 0:00:12.9]} 55. Qxe7 {[%clk 0:00:11]} 55... h5
{[%clk 0:00:13.3]} 56. Qf7 {[%clk 0:00:11.1]} 56... Kh8 {[%clk 0:00:12.4]} 57.
e7 {[%clk 0:00:11.5]} 57... h4 {[%clk 0:00:13.3]} 58. e8=Q+ {[%clk 0:00:11.9]}
58... Kh7 {[%clk 0:00:13.2]} 59. Qe4+ {[%clk 0:00:11.8]} 1-0

[Event "*** SCC Grand Prix: Titled Tuesday Blitz"]
[Site "Chess.com"]
[Date "2020.07.14"]
[Round "4"]
[White "fighter2jz"]
[Black "albi1999"]
[Result "1-0"]
[WhiteElo "2819"]
[BlackElo "2480"]
[TimeControl "180+1"]
[EndTime "10:40:09 PDT"]
[Termination "fighter2jz won by resignation"]

1. e4 {[%clk 0:03:00.9]} 1... e5 {[%clk 0:02:59]} 2. Nf3 {[%clk 0:03:00.2]} 2...
Nc6 {[%clk 0:02:59.5]} 3. Bb5 {[%clk 0:02:59.6]} 3... a6 {[%clk 0:02:59.4]} 4.
Ba4 {[%clk 0:02:59.2]} 4... d6 {[%clk 0:02:59.1]} 5. Bxc6+ {[%clk 0:02:58]} 5...
bxc6 {[%clk 0:02:59.2]} 6. d4 {[%clk 0:02:58.9]} 6... exd4 {[%clk 0:02:57.3]} 7.
Qxd4 {[%clk 0:02:58.3]} 7... Nf6 {[%clk 0:02:55.4]} 8. O-O {[%clk 0:02:57.6]}
8... Be7 {[%clk 0:02:54.9]} 9. e5 {[%clk 0:02:57.2]} 9... dxe5 {[%clk
0:02:49.4]} 10. Qxd8+ {[%clk 0:02:55.6]} 10... Bxd8 {[%clk 0:02:49.6]} 11. Nxe5
{[%clk 0:02:56.5]} 11... c5 {[%clk 0:02:48]} 12. Be3 {[%clk 0:02:34.5]} 12...
Be7 {[%clk 0:02:45.8]} 13. Nd2 {[%clk 0:02:26.5]} 13... O-O {[%clk 0:02:43.6]}
14. Nb3 {[%clk 0:02:21.7]} 14... Bf5 {[%clk 0:02:34.6]} 15. Bxc5 {[%clk
0:02:11.4]} 15... Bxc5 {[%clk 0:02:33.8]} 16. Nxc5 {[%clk 0:02:12]} 16... Bxc2
{[%clk 0:02:34.7]} 17. Rac1 {[%clk 0:02:10.5]} 17... Bf5 {[%clk 0:02:34.5]} 18.
Nc6 {[%clk 0:02:04.7]} 18... Rfe8 {[%clk 0:02:32.3]} 19. Rfe1 {[%clk 0:02:04.5]}
19... Kf8 {[%clk 0:02:31.7]} 20. Rxe8+ {[%clk 0:02:00]} 20... Nxe8 {[%clk
0:02:19.3]} 21. b4 {[%clk 0:01:54.6]} 21... Nd6 {[%clk 0:02:15.2]} 22. f3 {[%clk
0:01:53.8]} 22... Be6 {[%clk 0:02:02.7]} 23. Nxe6+ {[%clk 0:01:46.1]} 23... fxe6
{[%clk 0:02:03.6]} 24. Nd4 {[%clk 0:01:46.4]} 24... e5 {[%clk 0:01:59.9]} 25.
Ne6+ {[%clk 0:01:45.8]} 25... Kf7 {[%clk 0:01:58.9]} 26. Nxc7 {[%clk 0:01:42.8]}
26... Rc8 {[%clk 0:01:59]} 27. Rc3 {[%clk 0:01:30.5]} 27... g5 {[%clk
0:01:48.3]} 28. Kf2 {[%clk 0:01:29.5]} 28... h5 {[%clk 0:01:44.8]} 29. Ke2
{[%clk 0:01:23.1]} 29... Kg6 {[%clk 0:01:44.3]} 30. a4 {[%clk 0:01:14.2]} 30...
Kf5 {[%clk 0:01:42.1]} 31. Rc5 {[%clk 0:01:09.9]} 31... Nb7 {[%clk 0:01:37.2]}
32. Rc3 {[%clk 0:01:05.8]} 32... Nd8 {[%clk 0:01:35.3]} 33. Nd5 {[%clk 0:00:55]}
33... Rxc3 {[%clk 0:01:28.6]} 34. Nxc3 {[%clk 0:00:54.7]} 34... g4 {[%clk
0:01:21.6]} 35. Ke3 {[%clk 0:00:50.2]} 35... gxf3 {[%clk 0:01:21.4]} 36. gxf3
{[%clk 0:00:50.4]} 36... Nb7 {[%clk 0:01:09.9]} 37. a5 {[%clk 0:00:37]} 37...
Nd6 {[%clk 0:01:07.1]} 38. b5 {[%clk 0:00:25.3]} 38... axb5 {[%clk 0:00:59.8]}
39. a6 {[%clk 0:00:24.8]} 39... b4 {[%clk 0:01:00.3]} 40. a7 {[%clk 0:00:13.1]}
40... Nc4+ {[%clk 0:01:00.4]} 41. Kd3 {[%clk 0:00:13.4]} 41... Nb6 {[%clk
0:01:01.3]} 42. Nd5 {[%clk 0:00:13.6]} 42... Na8 {[%clk 0:00:52.6]} 43. Nxb4
{[%clk 0:00:13.8]} 43... Kf4 {[%clk 0:00:51.3]} 44. Nc6 {[%clk 0:00:11.6]} 44...
Kxf3 {[%clk 0:00:49.7]} 45. Nxe5+ {[%clk 0:00:11.7]} 45... Kg2 {[%clk
0:00:50.2]} 46. h4 {[%clk 0:00:12]} 46... Kg3 {[%clk 0:00:50.6]} 47. Ng6 {[%clk
0:00:12.3]} 47... Kg4 {[%clk 0:00:51.2]} 48. Ke4 {[%clk 0:00:12.8]} 48... Nb6
{[%clk 0:00:49.4]} 49. Ke5 {[%clk 0:00:12.4]} 49... Kg3 {[%clk 0:00:43]} 50. Kf5
{[%clk 0:00:11.3]} 50... Kf3 {[%clk 0:00:39]} 51. Kg5 {[%clk 0:00:09.6]} 51...
Ke4 {[%clk 0:00:39.6]} 52. Kxh5 {[%clk 0:00:09.6]} 52... Kd5 {[%clk 0:00:40.1]}
53. Ne7+ {[%clk 0:00:08.6]} 53... Ke6 {[%clk 0:00:35.4]} 54. Nc8 {[%clk
0:00:07]} 54... Na8 {[%clk 0:00:35.6]} 55. Kg6 {[%clk 0:00:07.1]} 55... Kd7
{[%clk 0:00:35.9]} 56. h5 {[%clk 0:00:07.4]} 56... Kxc8 {[%clk 0:00:36.3]} 57.
h6 {[%clk 0:00:07.7]} 57... Nc7 {[%clk 0:00:35.7]} 58. h7 {[%clk 0:00:08.1]} 1-0

[Event "*** SCC Grand Prix: Titled Tuesday Blitz"]
[Site "Chess.com"]
[Date "2020.07.14"]
[Round "4"]
[White "Orest_Vovk"]
[Black "Timerkhanov"]
[Result "1-0"]
[WhiteElo "2449"]
[BlackElo "2602"]
[TimeControl "180+1"]
[EndTime "10:40:12 PDT"]
[Termination "Orest_Vovk won by resignation"]

1. h4 {[%clk 0:03:00.9]} 1... d5 {[%clk 0:02:59.4]} 2. h5 {[%clk 0:03:01]} 2...
h6 {[%clk 0:02:59.6]} 3. e4 {[%clk 0:02:57]} 3... dxe4 {[%clk 0:02:59]} 4. Nc3
{[%clk 0:02:57]} 4... Nf6 {[%clk 0:02:58.8]} 5. Qe2 {[%clk 0:02:57.2]} 5... c6
{[%clk 0:02:54.2]} 6. Nxe4 {[%clk 0:02:56.2]} 6... Nxe4 {[%clk 0:02:54.1]} 7.
Qxe4 {[%clk 0:02:56.2]} 7... Nd7 {[%clk 0:02:55]} 8. Nf3 {[%clk 0:02:52.6]} 8...
Nf6 {[%clk 0:02:54.9]} 9. Qd3 {[%clk 0:02:35.4]} 9... Qc7 {[%clk 0:02:35]} 10.
Be2 {[%clk 0:02:26]} 10... Bg4 {[%clk 0:02:31.3]} 11. Ng1 {[%clk 0:02:00.2]}
11... Rd8 {[%clk 0:02:06.6]} 12. Qe3 {[%clk 0:01:57]} 12... Nd5 {[%clk
0:01:54.7]} 13. Qxa7 {[%clk 0:01:44]} 13... Bf5 {[%clk 0:01:22.6]} 14. d3 {[%clk
0:01:28.2]} 14... e6 {[%clk 0:01:16.4]} 15. Bd2 {[%clk 0:01:11.5]} 15... Be7
{[%clk 0:01:03.3]} 16. Nf3 {[%clk 0:00:55.2]} 16... O-O {[%clk 0:01:01.5]} 17.
Ba5 {[%clk 0:00:52.3]} 17... Bb4+ {[%clk 0:00:35.8]} 18. Bxb4 {[%clk 0:00:47.6]}
18... Nxb4 {[%clk 0:00:36.7]} 19. Qc5 {[%clk 0:00:45.7]} 19... Nd5 {[%clk
0:00:23.8]} 20. g3 {[%clk 0:00:31.9]} 20... Bg4 {[%clk 0:00:23.9]} 21. c4 {[%clk
0:00:23.6]} 21... Bxf3 {[%clk 0:00:23.4]} 22. Bxf3 {[%clk 0:00:20.1]} 22... Qe5+
{[%clk 0:00:22.9]} 23. Kf1 {[%clk 0:00:17.6]} 23... b6 {[%clk 0:00:21.9]} 24.
Qxc6 {[%clk 0:00:11.5]} 24... Qxb2 {[%clk 0:00:21.8]} 25. Re1 {[%clk 0:00:08.3]}
25... Nb4 {[%clk 0:00:18]} 26. Qxb6 {[%clk 0:00:08.2]} 26... Qd2 {[%clk
0:00:17.8]} 27. Qe3 {[%clk 0:00:06.5]} 27... Qc3 {[%clk 0:00:17]} 28. Rc1 {[%clk
0:00:05]} 28... Qb2 {[%clk 0:00:16.6]} 29. Kg2 {[%clk 0:00:04.6]} 29... Nxd3
{[%clk 0:00:16.9]} 30. Rb1 {[%clk 0:00:03.4]} 30... Qxa2 {[%clk 0:00:17]} 31.
Rbd1 {[%clk 0:00:03.7]} 31... Qxc4 {[%clk 0:00:16.1]} 32. Rd2 {[%clk 0:00:03.4]}
32... Nc5 {[%clk 0:00:12.5]} 33. Rxd8 {[%clk 0:00:02.3]} 33... Rxd8 {[%clk
0:00:13.4]} 34. Rc1 {[%clk 0:00:01.9]} 34... Qb4 {[%clk 0:00:05]} 35. Rxc5
{[%clk 0:00:02.8]} 35... Qb8 {[%clk 0:00:04.7]} 36. Rc3 {[%clk 0:00:03.7]} 36...
Re8 {[%clk 0:00:04.8]} 37. Rd3 {[%clk 0:00:04.1]} 37... Qc8 {[%clk 0:00:05.1]}
38. Rd2 {[%clk 0:00:04.7]} 38... e5 {[%clk 0:00:05.7]} 39. Re2 {[%clk
0:00:05.3]} 39... e4 {[%clk 0:00:06.2]} 40. Bxe4 {[%clk 0:00:05.7]} 40... Kh8
{[%clk 0:00:06.5]} 41. Qf3 {[%clk 0:00:05.3]} 41... Qe6 {[%clk 0:00:06.7]} 42.
Bd3 {[%clk 0:00:05.1]} 42... Qd7 {[%clk 0:00:07.2]} 43. Rxe8+ {[%clk 0:00:05.1]}
43... Qxe8 {[%clk 0:00:08.1]} 44. Qf5 {[%clk 0:00:04.4]} 44... g6 {[%clk
0:00:07.6]} 45. hxg6 {[%clk 0:00:04.4]} 45... fxg6 {[%clk 0:00:08.5]} 46. Qxg6
{[%clk 0:00:05]} 46... Qa8+ {[%clk 0:00:09.4]} 47. Be4 {[%clk 0:00:05.3]} 47...
Qa7 {[%clk 0:00:09.7]} 48. Qf6+ {[%clk 0:00:05.5]} 48... Kg8 {[%clk 0:00:10]}
49. Qg6+ {[%clk 0:00:06]} 49... Kf8 {[%clk 0:00:10.3]} 50. Qxh6+ {[%clk
0:00:06.5]} 50... Ke8 {[%clk 0:00:09.9]} 51. Qf4 {[%clk 0:00:07.4]} 51... Ke7
{[%clk 0:00:09.9]} 52. Qe5+ {[%clk 0:00:07.6]} 52... Kd8 {[%clk 0:00:10]} 53.
Qh8+ {[%clk 0:00:07.3]} 1-0

[Event "*** SCC Grand Prix: Titled Tuesday Blitz"]
[Site "Chess.com"]
[Date "2020.07.14"]
[Round "4"]
[White "Lenyas66"]
[Black "Sychev_Klementy"]
[Result "0-1"]
[WhiteElo "2494"]
[BlackElo "2735"]
[TimeControl "180+1"]
[EndTime "10:40:13 PDT"]
[Termination "Sychev_Klementy won on time"]

1. e4 {[%clk 0:03:00.9]} 1... e5 {[%clk 0:02:59.9]} 2. Nf3 {[%clk 0:03:01]} 2...
Nc6 {[%clk 0:03:00.3]} 3. Bb5 {[%clk 0:03:01]} 3... a6 {[%clk 0:03:00.5]} 4. Ba4
{[%clk 0:03:01.2]} 4... b5 {[%clk 0:03:00.7]} 5. Bb3 {[%clk 0:03:00.7]} 5... Na5
{[%clk 0:03:01.3]} 6. d4 {[%clk 0:02:53.4]} 6... exd4 {[%clk 0:03:00.6]} 7. O-O
{[%clk 0:02:44.5]} 7... Bb7 {[%clk 0:02:50]} 8. Re1 {[%clk 0:02:36.9]} 8... d6
{[%clk 0:02:38]} 9. Nbd2 {[%clk 0:02:20.9]} 9... c5 {[%clk 0:02:11.5]} 10. Bd5
{[%clk 0:02:17.8]} 10... Bxd5 {[%clk 0:01:46.9]} 11. exd5+ {[%clk 0:02:17.4]}
11... Be7 {[%clk 0:01:47.1]} 12. b4 {[%clk 0:02:13.3]} 12... Nb7 {[%clk
0:01:46.1]} 13. Ne4 {[%clk 0:02:03]} 13... Kf8 {[%clk 0:01:16.4]} 14. a4 {[%clk
0:01:30.8]} 14... Nf6 {[%clk 0:01:11.8]} 15. Nxf6 {[%clk 0:01:25.1]} 15... Bxf6
{[%clk 0:01:10.7]} 16. axb5 {[%clk 0:01:14.2]} 16... axb5 {[%clk 0:01:10.8]} 17.
Rxa8 {[%clk 0:01:13.6]} 17... Qxa8 {[%clk 0:01:11.7]} 18. Qe2 {[%clk 0:01:12.1]}
18... c4 {[%clk 0:00:47.6]} 19. Qe4 {[%clk 0:01:08.9]} 19... h6 {[%clk
0:00:28.4]} 20. Nxd4 {[%clk 0:01:06]} 20... g6 {[%clk 0:00:28.6]} 21. Nc6 {[%clk
0:00:59.2]} 21... Kg7 {[%clk 0:00:23.5]} 22. h4 {[%clk 0:00:55.8]} 22... Qc8
{[%clk 0:00:18.9]} 23. g4 {[%clk 0:00:47.1]} 23... Qd7 {[%clk 0:00:12]} 24. Kg2
{[%clk 0:00:43.8]} 24... Nd8 {[%clk 0:00:11.5]} 25. f4 {[%clk 0:00:39.4]} 25...
Qxg4+ {[%clk 0:00:10.5]} 26. Kf1 {[%clk 0:00:38.3]} 26... Qh3+ {[%clk
0:00:10.6]} 27. Ke2 {[%clk 0:00:35.3]} 27... Qg4+ {[%clk 0:00:08.7]} 28. Kd2
{[%clk 0:00:32.9]} 28... Qxh4 {[%clk 0:00:08.1]} 29. Nd4 {[%clk 0:00:28.6]}
29... Qf2+ {[%clk 0:00:06]} 30. Kc3 {[%clk 0:00:26.2]} 30... Nb7 {[%clk
0:00:04]} 31. Re3 {[%clk 0:00:24.1]} 31... Ra8 {[%clk 0:00:03.1]} 32. Kb2 {[%clk
0:00:22]} 32... Qg1 {[%clk 0:00:03.4]} 33. c3 {[%clk 0:00:19.7]} 33... Qh2+
{[%clk 0:00:02.8]} 34. Re2 {[%clk 0:00:19.6]} 34... Qg3 {[%clk 0:00:03]} 35. Be3
{[%clk 0:00:16.3]} 35... Qg4 {[%clk 0:00:02.7]} 36. Rg2 {[%clk 0:00:12.2]} 36...
Qd1 {[%clk 0:00:01.9]} 37. Nc2 {[%clk 0:00:09.4]} 37... h5 {[%clk 0:00:01.6]}
38. f5 {[%clk 0:00:09.3]} 38... Qd3 {[%clk 0:00:01.5]} 39. Qxd3 {[%clk
0:00:06.9]} 39... cxd3 {[%clk 0:00:02]} 40. Nd4 {[%clk 0:00:07.5]} 40... Re8
{[%clk 0:00:02]} 41. Bd2 {[%clk 0:00:07]} 41... Bxd4 {[%clk 0:00:02.3]} 42. cxd4
{[%clk 0:00:06.6]} 42... Re2 {[%clk 0:00:02.7]} 43. Rxe2 {[%clk 0:00:05.5]}
43... dxe2 {[%clk 0:00:03.6]} 44. fxg6 {[%clk 0:00:05.5]} 44... fxg6 {[%clk
0:00:03.8]} 45. Kc2 {[%clk 0:00:05.6]} 45... Kf6 {[%clk 0:00:04]} 46. Kd3 {[%clk
0:00:05.7]} 46... Kf5 {[%clk 0:00:04.5]} 47. Be1 {[%clk 0:00:04.7]} 47... g5
{[%clk 0:00:04.6]} 48. Ke3 {[%clk 0:00:03.8]} 48... g4 {[%clk 0:00:04.6]} 49.
Bg3 {[%clk 0:00:02.8]} 49... Nd8 {[%clk 0:00:03.7]} 50. Kxe2 {[%clk 0:00:01.6]}
50... Ke4 {[%clk 0:00:03.8]} 51. Bh4 {[%clk 0:00:01.3]} 51... Nf7 {[%clk
0:00:03.3]} 0-1